fUST/lending_fUST_20241029
["ID","MTS","AMOUNT","RATE_DAILY","PERIOD"]
[340964059,1730169048267,-508.20473172,0.00024657,4]
[340964060,1730169048276,-543.84,0.00024657,4]
[340964061,1730169048285,-505.41435859,0.00024657,4]
[340964062,1730169048295,-308.61937138,0.00024657,4]
[340964063,1730169048305,-500.0,0.00024657,4]
[340964064,1730169048315,-504.44876322,0.00024657,4]
[340964066,1730169048324,-500.0,0.00024657,4]
[340964067,1730169048334,-500.0,0.00024657,4]
[340964068,1730169048344,-500.0,0.00024657,4]
[340964069,1730169048356,-500.0,0.00024657,4]
[340964070,1730169048365,-500.0,0.00024657,4]
[340964071,1730169048374,-500.0,0.00024657,4]
[340964072,1730169048383,-500.0,0.00024657,4]
[340964073,1730169048394,-500.0,0.00024657,4]
[340964074,1730169048403,-500.0,0.00024657,4]
[340964075,1730169048413,-507.22896129,0.00024657,4]
[340964076,1730169048422,-500.0,0.00024657,4]
[340964077,1730169048431,-500.0,0.00024657,4]
[340964078,1730169048441,-538.18414167,0.00024657,4]
[340964079,1730169048450,-500.0,0.00024657,4]
[340964080,1730169048459,-500.0,0.00024657,4]
[340964081,1730169048469,-500.0,0.00024657,4]
[340964082,1730169048479,-500.0,0.00024657,4]
[340964083,1730169048488,-500.0,0.00024657,4]
[340964084,1730169048497,-500.0,0.00024657,4]
[340964085,1730169048507,-500.10580429,0.00024657,4]
[340964086,1730169048517,-514.79167204,0.00024657,4]
[340964087,1730169048526,-500.0,0.00024657,4]
[340964088,1730169048536,-248.68551442,0.00024657,4]
[340964089,1730169048546,-500.0,0.00024657,4]
[340964090,1730169048555,-500.0,0.00024657,4]
[340964091,1730169048565,-500.0,0.00024657,4]
[340964092,1730169048574,-500.0,0.00024657,4]
[340964093,1730169048584,-500.0,0.00024657,4]
[340964094,1730169048593,-494.34700424,0.00024657,4]
[340964095,1730169048604,-500.0,0.00024657,4]
[340964096,1730169048614,-500.0,0.00024657,4]
[340964097,1730169048623,-500.0,0.00024657,4]
[340964098,1730169048632,-500.0,0.00024657,4]
[340964099,1730169048642,-500.0,0.00024657,4]
[340964100,1730169048652,-500.0,0.00024657,4]
[340964101,1730169048661,-529.28,0.00024657,4]
[340964102,1730169048670,-500.0,0.00024657,4]
[340964103,1730169048679,-500.0,0.00024657,4]
[340964104,1730169048689,-500.0,0.00024657,4]
[340964105,1730169048698,-500.0,0.00024657,4]
[340964106,1730169048707,-500.0,0.00024657,4]
[340964107,1730169048717,-500.0,0.00024657,4]
[340964108,1730169048726,-500.0,0.00024657,4]
[340964109,1730169048736,-500.0,0.00024657,4]
[340964110,1730169048745,-500.0,0.00024657,4]
[340964111,1730169048755,-500.0,0.00024657,4]
[340964112,1730169048764,-500.0,0.00024657,4]
[340964113,1730169048774,-500.0,0.00024657,4]
[340964114,1730169048784,-500.0,0.00024657,4]
[340964115,1730169048794,-524.09427501,0.00024657,4]
[340964116,1730169048804,-500.0,0.00024657,4]
[340964117,1730169048813,-500.0,0.00024657,4]
[340964118,1730169048822,-502.3316695,0.00024657,4]
[340964119,1730169048832,-500.0,0.00024657,4]
[340964120,1730169048841,-500.0,0.00024657,4]
[340964121,1730169048852,-502.60025031,0.00024657,4]
[340964122,1730169048862,-510.42747344,0.00024657,4]
[340964123,1730169048872,-505.30565573,0.00024657,4]
[340964124,1730169048881,-500.0,0.00024657,4]
[340964125,1730169048890,-500.0,0.00024657,4]
[340964126,1730169048900,-538.07330671,0.00024657,4]
[340964127,1730169048910,-584.01047736,0.00024657,4]
[340964128,1730169048920,-500.0,0.00024657,4]
[340964129,1730169048929,-500.0,0.00024657,4]
[340964130,1730169048939,-1002.71363307,0.00024657,4]
[340964131,1730169048948,-500.0,0.00024657,4]
[340964132,1730169048958,-151.0,0.00024657,7]
[340964133,1730169048968,-151.0,0.00024657,7]
[340964134,1730169048977,-151.0,0.00024657,7]
[340964135,1730169048987,-244.457531,0.00024657,7]
[340964136,1730169048997,-500.0,0.00024657,4]
[340964137,1730169049006,-532.722726,0.00024657,7]
[340964138,1730169049016,-532.722726,0.00024657,7]
[340964139,1730169049025,-532.722726,0.00024657,7]
[340964140,1730169049035,-500.0,0.00024657,4]
[340964141,1730169049044,-532.722726,0.00024657,7]
[340964142,1730169049055,-532.722726,0.00024657,7]
[340964143,1730169049065,-532.722726,0.00024657,7]
[340964144,1730169049075,-500.0,0.00024657,4]
[340964145,1730169049084,-532.722726,0.00024657,7]
[340964147,1730169049095,-532.722726,0.00024657,7]
[340964148,1730169049107,-527.50613949,0.00024657,4]
[340964149,1730169049118,-532.722726,0.00024657,7]
[340964150,1730169049127,-532.722726,0.00024657,7]
[340964151,1730169049139,-532.722726,0.00024657,7]
[340964152,1730169049149,-532.722726,0.00024657,7]
[340964153,1730169049159,-532.722726,0.00024657,7]
[340964154,1730169049168,-500.0,0.00024657,4]
[340964155,1730169049178,-500.0,0.00024657,4]
[340964156,1730169049187,-532.72271802,0.00024657,7]
[340964157,1730169049197,-500.0,0.00024657,4]
[340964158,1730169049207,-500.0,0.00024657,4]
[340964159,1730169049216,-500.0,0.00024657,4]
[340964160,1730169049227,-502.67830459,0.00024657,4]
[340964161,1730169049236,-500.0,0.00024657,4]
[340964162,1730169049245,-151.0,0.00024657,7]
[340964163,1730169049255,-500.0,0.00024657,4]
[340964164,1730169049264,-151.0,0.00024657,7]
[340964165,1730169049274,-151.0,0.00024657,7]
[340964166,1730169049284,-151.0,0.00024657,7]
[340964167,1730169049293,-151.0,0.00024657,7]
[340964168,1730169049303,-506.56667141,0.00024657,4]
[340964169,1730169049312,-151.0,0.00024657,7]
[340964170,1730169049322,-151.0,0.00024657,7]
[340964171,1730169049332,-156.07499476,0.00024657,4]
[340964172,1730169049341,-151.0,0.00024657,7]
[340964173,1730169049352,-151.0,0.00024657,7]
[340964174,1730169049361,-500.0,0.00024657,4]
[340964175,1730169049370,-151.0,0.00024657,7]
[340964176,1730169049380,-151.0,0.00024657,7]
[340964177,1730169049390,-230.020572,0.00024657,7]
[340964178,1730169049399,-151.0,0.00024657,7]
[340964179,1730169049409,-151.0,0.00024657,7]
[340964180,1730169049419,-151.0,0.00024657,7]
[340964181,1730169049428,-500.0,0.00024657,4]
[340964182,1730169049438,-151.0,0.00024657,7]
[340964183,1730169049448,-163.368068,0.00024657,7]
[340964184,1730169049457,-500.0,0.00024657,4]
[340964185,1730169049466,-394.3440364,0.00024657,4]
[340964186,1730169049475,-615.502114,0.00024657,4]
[340964187,1730169049485,-500.0,0.00024657,4]
[340964188,1730169049496,-500.0,0.00024657,4]
[340964189,1730169049506,-500.0,0.00024657,4]
[340964190,1730169049516,-500.0,0.00024657,4]
[340964191,1730169049526,-509.53253176,0.00024657,4]
[340964192,1730169049535,-500.0,0.00024657,4]
[340964193,1730169049545,-500.0,0.00024657,4]
[340964194,1730169049554,-500.0,0.00024657,4]
[340964195,1730169049564,-500.0,0.00024657,4]
[340964196,1730169049574,-504.56181975,0.00024657,4]
[340964197,1730169049583,-1066.24,0.00024657,4]
[340964198,1730169049592,-500.0,0.00024657,4]
[340964199,1730169049604,-500.0,0.00024657,4]
[340964200,1730169049614,-500.0,0.00024657,4]
[340964201,1730169049624,-502.1270288,0.00024657,4]
[340964202,1730169049633,-500.0,0.00024657,4]
[340964203,1730169049642,-515.88647371,0.00024657,4]
[340964204,1730169049651,-500.0,0.00024657,4]
[340964205,1730169049661,-500.0,0.00024657,4]
[340964206,1730169049670,-688.49,0.00024657,4]
[340964207,1730169049680,-500.0,0.00024657,4]
[340964208,1730169049690,-500.0,0.00024657,4]
[340964209,1730169049700,-500.0,0.00024657,4]
[340964210,1730169049709,-500.0,0.00024657,4]
[340964211,1730169049718,-504.39424064,0.00024657,4]
[340964212,1730169049830,-500.0,0.00024657,4]
[340964213,1730169049841,-151.0,0.00024657,7]
[340964214,1730169049852,-151.0,0.00024657,7]
[340964215,1730169049861,-293.041456,0.00024657,7]
[340964216,1730169049871,-500.0,0.00024657,4]
[340964217,1730169049881,-500.0,0.00024657,4]
[340964218,1730169049890,-513.07869139,0.00024657,4]
[340964219,1730169049899,-500.0,0.00024657,4]
[340964220,1730169049909,-1314.99,0.00024657,4]
[340964221,1730169049918,-500.0,0.00024657,4]
[340964222,1730169049928,-500.88349034,0.00024657,4]
[340964223,1730169049938,-500.0,0.00024657,4]
[340964224,1730169049948,-500.0,0.00024657,4]
[340964225,1730169049957,-503.22448239,0.00024657,4]
[340964226,1730169049967,-500.0,0.00024657,4]
[340964227,1730169049976,-500.0,0.00024657,4]
[340964228,1730169049986,-500.0,0.00024657,4]
[340964229,1730169049995,-516.79598791,0.00024657,4]
[340964230,1730169050005,-268.273165,0.00024657,7]
[340964231,1730169050015,-151.0,0.00024657,7]
[340964232,1730169050025,-500.0,0.00024657,4]
[340964233,1730169050035,-500.0,0.00024657,4]
[340964234,1730169050045,-500.0,0.00024657,4]
[340964235,1730169050056,-502.32889032,0.00024657,4]
[340964236,1730169050067,-500.0,0.00024657,4]
[340964237,1730169050076,-504.3467436,0.00024657,4]
[340964238,1730169050085,-500.0,0.00024657,4]
[340964239,1730169050094,-500.0,0.00024657,4]
[340964240,1730169050105,-256.40861682,0.00024657,4]
[340964242,1730169050283,-246.97829732,0.00024657,4]
[340964243,1730169050292,-500.0,0.00024657,4]
[340964244,1730169050302,-315.48670268,0.00024657,4]
[340964245,1730169050451,156.0,0.00022,2]
[340964246,1730169050467,-672.45,0.00024637,3]
[340964247,1730169050476,-184.51329732,0.00024657,4]
[340964248,1730169050486,-508.80752403,0.00024657,4]
[340964249,1730169050496,-500.0,0.00024657,4]
[340964250,1730169050505,-500.0,0.00024657,4]
[340964251,1730169050515,-500.0,0.00024657,4]
[340964252,1730169050524,-500.0,0.00024657,4]
[340964253,1730169050534,-500.0,0.00024657,4]
[340964254,1730169050544,-500.0,0.00024657,4]
[340964255,1730169050553,-502.09445241,0.00024657,4]
[340964256,1730169050562,-500.0,0.00024657,4]
[340964257,1730169050571,-500.0,0.00024657,4]
[340964258,1730169050580,-500.0,0.00024657,4]
[340964259,1730169050590,-500.0,0.00024657,4]
[340964260,1730169050600,-279.87532624,0.00024657,4]
[340964261,1730169050610,-500.0,0.00024657,4]
[340964262,1730169050620,-231.73602589,0.00024657,4]
[340964305,1730169069171,88.93814564,0.00016438,30]
[340964306,1730169069193,245.0,0.00016438,30]
[340964307,1730169069214,166.06185436,0.00016438,30]
[340964308,1730169069607,74.86602483,0.00016438,30]
[340964309,1730169069631,245.0,0.00016438,30]
[340964310,1730169069654,180.13397517,0.00016438,30]
[340964314,1730169070404,65.57738445,0.00016438,30]
[340964315,1730169070426,434.42261555,0.00016438,30]
[340964318,1730169070832,549.25245043,0.00016438,30]
[340964509,1730169183697,13076.67001641,0.00035512,90]
[340964728,1730169354955,1485.0,0.00035459,32]
[340964865,1730169584014,182.498,0.00035486,30]
[340965139,1730169720072,176.548419,0.00013973,2]
[340965360,1730170028139,-671.73455091,0.00021835,2]
[340965361,1730170041122,-3091.54226405,0.00021835,2]
[340965362,1730170052084,-1701.05730587,0.00021835,2]
[340965366,1730170157095,-245.0,0.00021834,2]
[340965371,1730170173281,-55.0,0.00021834,2]
[340965372,1730170173303,-300.0,0.00021834,2]
[340965373,1730170173326,-19435.66587917,0.00021835,2]
[340965374,1730170173348,-2800.0,0.00021835,2]
[340965375,1730170173370,-697.7280375,0.00021887,2]
[340965376,1730170173394,-166.666666,0.00021918,2]
[340965377,1730170173416,-168.0,0.00022,2]
[340965378,1730170173437,-279.0,0.00022,2]
[340965379,1730170173459,-172.5721,0.00022028,2]
[340965380,1730170173481,-250.0,0.0002226,2]
[340965381,1730170173503,-3173.3118155,0.00022283,2]
[340965382,1730170173524,-206.2072295,0.00022284,2]
[340965383,1730170173546,-250.0,0.00022381,2]
[340965384,1730170173568,-250.0,0.00022442,2]
[340965385,1730170173589,-166.666666,0.00022484,2]
[340965386,1730170173612,-250.0,0.00022504,2]
[340965387,1730170173635,-177.87390352,0.00022565,2]
[340965436,1730170232261,-72.12609648,0.00022565,2]
[340965438,1730170232271,-250.0,0.00022626,2]
[340965440,1730170232280,-250.0,0.00022688,2]
[340965442,1730170232290,-172.5721,0.00022713,2]
[340965445,1730170232300,-250.0,0.00022749,2]
[340965448,1730170232309,-250.0,0.0002281,2]
[340965451,1730170232318,-250.0,0.00022872,2]
[340965454,1730170232327,-250.0,0.00022933,2]
[340965456,1730170232336,-184.733944,0.00022945,2]
[340965458,1730170232346,-250.0,0.00022995,2]
[340965460,1730170232355,-168.0,0.00023014,2]
[340965462,1730170232364,-250.0,0.00023056,2]
[340965464,1730170232373,-300.0,0.00023077,2]
[340965466,1730170232384,-663.49785952,0.00023078,2]
[340965484,1730170238505,-167.502647,0.00022006,2]
[340965485,1730170238514,-167.502647,0.00022756,2]
[340965486,1730170238524,-7365.23349902,0.00023078,2]
[340965487,1730170238533,-250.0,0.00023117,2]
[340965488,1730170238543,-5917.93,0.00023152,2]
[340965489,1730170238551,-250.0,0.00023179,2]
[340965490,1730170238561,-250.0,0.0002324,2]
[340965491,1730170238570,-5917.93,0.00023286,2]
[340965492,1730170238579,-250.0,0.00023301,2]
[340965493,1730170238588,-250.0,0.00023363,2]
[340965494,1730170238597,-172.5721,0.00023398,2]
[340965495,1730170238606,-250.0,0.00023424,2]
[340965496,1730170238615,-250.0,0.00023485,2]
[340965497,1730170238624,-167.502647,0.00023506,2]
[340965498,1730170238634,-250.0,0.00023547,2]
[340965499,1730170238645,-170.0,0.00024164,2]
[340965500,1730170238655,-167.502647,0.00024256,2]
[340965501,1730170238664,-1539.51926204,0.00024361,2]
[340965502,1730170238674,-210.8524058,0.00024384,2]
[340965503,1730170238683,-693.85,0.0002439,3]
[340965504,1730170238692,-346.92,0.0002439,3]
[340965505,1730170238702,-173.46,0.0002439,3]
[340965506,1730170238711,-520.42,0.0002439,3]
[340965507,1730170238721,-500.0,0.00024398,2]
[340965508,1730170238730,-422.82608365,0.00024398,2]
[340965509,1730170238740,-500.0,0.00024398,2]
[340965510,1730170238750,-500.0,0.00024398,2]
[340965511,1730170238759,-500.0,0.00024398,2]
[340965512,1730170238768,-500.0,0.00024398,2]
[340965513,1730170238777,-500.0,0.00024398,2]
[340965514,1730170238786,-500.0,0.00024398,2]
[340965515,1730170238795,-500.0,0.00024398,2]
[340965516,1730170238804,-500.0,0.00024398,2]
[340965517,1730170238813,-288.18118496,0.00024398,2]
[340965518,1730170238822,-500.0,0.00024398,2]
[340965519,1730170238833,-500.0,0.00024398,2]
[340965520,1730170238842,-500.0,0.00024398,2]
[340965521,1730170238852,-500.0,0.00024398,2]
[340965522,1730170238861,-423.17966938,0.00024398,2]
[340965523,1730170238870,-365.42421574,0.00024398,2]
[340965524,1730170238879,-500.0,0.00024398,2]
[340965525,1730170238890,-500.0,0.00024398,2]
[340965526,1730170238899,-500.0,0.00024398,2]
[340965527,1730170238909,-500.0,0.00024398,2]
[340965528,1730170238918,-500.0,0.00024398,2]
[340965529,1730170238928,-500.0,0.00024398,2]
[340965530,1730170238938,-500.0,0.00024398,2]
[340965531,1730170238947,-500.0,0.00024398,2]
[340965532,1730170238957,-250.0,0.00024398,2]
[340965533,1730170239074,-500.0,0.00024398,2]
[340965534,1730170239084,-500.0,0.00024398,2]
[340965535,1730170239094,-500.0,0.00024398,2]
[340965536,1730170239103,-500.0,0.00024398,2]
[340965537,1730170239112,-500.0,0.00024398,2]
[340965538,1730170239121,-500.0,0.00024398,2]
[340965539,1730170239131,-500.0,0.00024398,2]
[340965540,1730170239143,-500.0,0.00024398,2]
[340965541,1730170239152,-500.0,0.00024398,2]
[340965542,1730170239162,-500.0,0.00024398,2]
[340965543,1730170239171,-500.0,0.00024398,2]
[340965544,1730170239181,-500.0,0.00024398,2]
[340965545,1730170239190,-500.0,0.00024398,2]
[340965546,1730170239199,-500.0,0.00024398,2]
[340965547,1730170239209,-500.0,0.00024398,2]
[340965548,1730170239218,-500.0,0.00024398,2]
[340965549,1730170239228,-500.0,0.00024398,2]
[340965550,1730170239238,-500.0,0.00024398,2]
[340965551,1730170239247,-500.0,0.00024398,2]
[340965552,1730170239257,-500.0,0.00024398,2]
[340965553,1730170239267,-500.0,0.00024398,2]
[340965554,1730170239276,-500.0,0.00024398,2]
[340965555,1730170239287,-500.0,0.00024398,2]
[340965556,1730170239296,-500.0,0.00024398,2]
[340965557,1730170239306,-500.0,0.00024398,2]
[340965558,1730170239317,-500.0,0.00024398,2]
[340965559,1730170239327,-500.0,0.00024398,2]
[340965560,1730170239336,-500.0,0.00024398,2]
[340965561,1730170239345,-541.43439057,0.00024398,2]
[340965562,1730170239355,-500.0,0.00024398,2]
[340965563,1730170239365,-500.0,0.00024398,2]
[340965564,1730170239375,-500.0,0.00024398,2]
[340965565,1730170239385,-500.0,0.00024398,2]
[340965566,1730170239396,-500.0,0.00024398,2]
[340965567,1730170239406,-242.93853007,0.00024398,2]
[340965568,1730170239416,-500.0,0.00024398,2]
[340965569,1730170239430,-500.0,0.00024398,2]
[340965570,1730170239439,-500.0,0.00024398,2]
[340965571,1730170239449,-500.0,0.00024398,2]
[340965572,1730170239458,-500.0,0.00024398,2]
[340965573,1730170239469,-500.0,0.00024398,2]
[340965574,1730170239478,-500.0,0.00024398,2]
[340965575,1730170239487,-500.0,0.00024398,2]
[340965576,1730170239498,-500.0,0.00024398,2]
[340965577,1730170239508,-500.0,0.00024398,2]
[340965578,1730170239517,-500.0,0.00024398,2]
[340965579,1730170239527,-500.0,0.00024398,2]
[340965580,1730170239536,-500.0,0.00024398,2]
[340965581,1730170239546,-500.0,0.00024398,2]
[340965582,1730170239556,-500.0,0.00024398,2]
[340965583,1730170239565,-500.0,0.00024398,2]
[340965584,1730170239575,-500.0,0.00024398,2]
[340965585,1730170239585,-500.0,0.00024398,2]
[340965586,1730170239595,-500.0,0.00024398,2]
[340965588,1730170239604,-500.0,0.00024398,2]
[340965589,1730170239614,-884.88811145,0.00024399,2]
[340965590,1730170239624,-259.42584761,0.00024399,2]
[340965591,1730170239634,-500.0,0.00024399,2]
[340965592,1730170239646,-221.68123829,0.00024399,2]
[340965593,1730170239656,-273.91003043,0.00024399,2]
[340965594,1730170239666,-353.67931582,0.00024399,2]
[340965595,1730170239675,-156.50083,0.000244,7]
[340965596,1730170239685,-156.50083,0.000244,7]
[340965597,1730170239695,-151.0,0.000244,7]
[340965598,1730170239704,-151.0,0.000244,7]
[340965599,1730170239713,-161.902496,0.000244,7]
[340965600,1730170239724,-161.902496,0.000244,7]
[340965601,1730170239733,-155.331234,0.000244,7]
[340965602,1730170239742,-151.0,0.000244,7]
[340965603,1730170239753,-151.0,0.000244,7]
[340965604,1730170239762,-132055.074674,0.000244,3]
[340965605,1730170239771,-101729.897011,0.000244,3]
[340965606,1730170239783,-116988.71974458,0.0002441,2]
[340965607,1730170239792,-156.50083,0.0002441,7]
[340965608,1730170239801,-156.50083,0.0002441,7]
[340965609,1730170239811,-151.0,0.0002441,7]
[340965610,1730170239821,-151.0,0.0002441,7]
[340965611,1730170239830,-161.902496,0.0002441,7]
[340965612,1730170239840,-161.902496,0.0002441,7]
[340965613,1730170239849,-152.227843,0.0002441,7]
[340965614,1730170239859,-151.0,0.0002441,7]
[340965615,1730170239868,-155.314687,0.0002441,7]
[340965616,1730170239878,-214.653737,0.0002441,7]
[340965617,1730170239888,-210.76888226,0.00024416,7]
[340965618,1730170239898,-1878.2187092,0.00024526,2]
[340965620,1730170239908,-167.78211288,0.00024536,7]
[340965621,1730170239918,-167.78211288,0.00024536,7]
[340965622,1730170239927,-167.78211288,0.00024536,7]
[340965623,1730170239937,-167.78211288,0.00024536,7]
[340965625,1730170239947,-167.78,0.00024536,7]
[340965626,1730170239956,-157.29573083,0.00024536,7]
[340965627,1730170239966,-157.29573083,0.00024536,7]
[340965628,1730170239976,-157.29573083,0.00024536,7]
[340965629,1730170239985,-157.29573083,0.00024536,7]
[340965630,1730170239994,-157.29573083,0.00024536,7]
[340965631,1730170240005,-157.29573083,0.00024536,7]
[340965632,1730170240015,-157.29573083,0.00024536,7]
[340965633,1730170240024,-151.80058621,0.00024536,7]
[340965634,1730170240034,-151.80058621,0.00024536,7]
[340965635,1730170240043,-151.80058621,0.00024536,7]
[340965636,1730170240053,-151.80058621,0.00024536,7]
[340965637,1730170240063,-151.80058621,0.00024536,7]
[340965638,1730170240073,-151.80058621,0.00024536,7]
[340965639,1730170240082,-151.80058621,0.00024536,7]
[340965640,1730170240092,-151.80058621,0.00024536,7]
[340965641,1730170240101,-151.8,0.00024536,7]
[340965642,1730170240111,-157.63907029,0.00024536,7]
[340965643,1730170240121,-157.63907029,0.00024536,7]
[340965644,1730170240130,-157.63907029,0.00024536,7]
[340965646,1730170240141,-157.63907029,0.00024536,7]
[340965648,1730170240151,-157.63907029,0.00024536,7]
[340965650,1730170240161,-157.63907029,0.00024536,7]
[340965652,1730170240170,-157.63907029,0.00024536,7]
[340965653,1730170240180,-157.63907029,0.00024536,7]
[340965655,1730170240190,-157.63907029,0.00024536,7]
[340965656,1730170240200,-157.63907029,0.00024536,7]
[340965657,1730170240210,-157.63907029,0.00024536,7]
[340965658,1730170240220,-157.63907029,0.00024536,7]
[340965659,1730170240229,-1000.0,0.00024546,2]
[340965660,1730170240239,-157.29,0.00024557,7]
[340965661,1730170240249,-157.63,0.00024557,7]
[340965662,1730170240259,-277.7,0.00024598,2]
[340965663,1730170240269,-66027.5373371,0.0002461,3]
[340965664,1730170240278,-50864.9485054,0.0002461,3]
[340965665,1730170240287,-156.50083,0.0002461,7]
[340965666,1730170240296,-156.50083,0.0002461,7]
[340965667,1730170240305,-156.50083,0.0002461,7]
[340965668,1730170240315,-156.50083,0.0002461,7]
[340965669,1730170240324,-151.0,0.0002461,7]
[340965670,1730170240333,-151.0,0.0002461,7]
[340965671,1730170240343,-151.0,0.0002461,7]
[340965672,1730170240353,-151.0,0.0002461,7]
[340965674,1730170240362,-161.902496,0.0002461,7]
[340965676,1730170240372,-161.902496,0.0002461,7]
[340965677,1730170240381,-161.902496,0.0002461,7]
[340965678,1730170240392,-161.902496,0.0002461,7]
[340965679,1730170240402,-151.0,0.0002461,7]
[340965680,1730170240412,-151.0,0.0002461,7]
[340965681,1730170240424,-156.50083,0.00024612,7]
[340965682,1730170240434,-156.50083,0.00024612,7]
[340965683,1730170240443,-156.50083,0.00024612,7]
[340965684,1730170240453,-156.50083,0.00024612,7]
[340965685,1730170240464,-151.0,0.00024612,7]
[340965686,1730170240474,-151.0,0.00024612,7]
[340965687,1730170240483,-151.0,0.00024612,7]
[340965688,1730170240494,-151.0,0.00024612,7]
[340965689,1730170240503,-161.902496,0.00024612,7]
[340965690,1730170240512,-161.902496,0.00024612,7]
[340965691,1730170240522,-161.902496,0.00024612,7]
[340965692,1730170240531,-161.902496,0.00024612,7]
[340965693,1730170240541,-151.0,0.00024612,7]
[340965694,1730170240551,-151.0,0.00024612,7]
[340965695,1730170240560,-66027.5373371,0.00024612,3]
[340965696,1730170240570,-50864.9485054,0.00024612,3]
[340965698,1730170240579,-66027.5373371,0.00024616,3]
[340965699,1730170240590,-101729.897011,0.00024616,3]
[340965700,1730170240599,-156.50083,0.00024616,7]
[340965701,1730170240609,-156.50083,0.00024616,7]
[340965702,1730170240618,-156.50083,0.00024616,7]
[340965703,1730170240628,-156.50083,0.00024616,7]
[340965704,1730170240639,-151.0,0.00024616,7]
[340965705,1730170240648,-151.0,0.00024616,7]
[340965706,1730170240657,-151.0,0.00024616,7]
[340965707,1730170240667,-151.0,0.00024616,7]
[340965708,1730170240677,-161.902496,0.00024616,7]
[340965709,1730170240686,-161.902496,0.00024616,7]
[340965710,1730170240696,-161.902496,0.00024616,7]
[340965711,1730170240706,-161.902496,0.00024616,7]
[340965712,1730170240715,-151.0,0.00024616,7]
[340965713,1730170240725,-248.301207,0.00024616,7]
[340965714,1730170240734,-522.391,0.0002462,7]
[340965715,1730170240744,-5917.93,0.0002462,2]
[340965716,1730170240754,-5917.93,0.0002462,2]
[340965717,1730170240764,-5917.93,0.0002462,2]
[340965718,1730170240773,-5917.93,0.00024621,2]
[340965719,1730170240783,-5917.93,0.00024621,2]
[340965720,1730170240792,-5917.93,0.00024621,2]
[340965721,1730170240802,-3957.16685443,0.00024621,2]
[340965722,1730170241319,-1960.76314557,0.00024621,2]
[340965723,1730170241330,-5917.93,0.00024621,2]
[340965724,1730170241340,-5917.93,0.00024621,2]
[340965725,1730170241350,-5917.93,0.00024625,2]
[340965726,1730170241359,-5917.93,0.00024625,2]
[340965727,1730170241369,-5917.93,0.00024625,2]
[340965728,1730170241378,-5917.93,0.00024625,2]
[340965729,1730170241390,-5917.93,0.00024625,2]
[340965730,1730170241400,-5917.93,0.00024625,2]
[340965731,1730170241409,-5917.93,0.00024625,2]
[340965732,1730170241421,-5917.93,0.00024625,2]
[340965733,1730170241432,-5917.93,0.00024625,2]
[340965734,1730170241441,-5917.93,0.00024625,2]
[340965735,1730170241451,-5917.93,0.00024625,2]
[340965736,1730170241463,-5917.93,0.00024625,2]
[340965737,1730170241472,-5918.11949177,0.00024625,2]
[340965738,1730170241482,-151.0,0.00024626,7]
[340965739,1730170241492,-153.225768,0.00024626,7]
[340965740,1730170241502,-151.0,0.00024626,7]
[340965741,1730170241511,-154.324483,0.00024626,7]
[340965742,1730170241520,-151.0,0.00024626,7]
[340965743,1730170241529,-152.372459,0.00024626,7]
[340965744,1730170241538,-151.0,0.00024626,7]
[340965745,1730170241548,-235.22104,0.00024626,7]